Cogmind - Beta 17 @@@ ROGUE MODE // 2026.07.14 @ 18:16:32 Player: Toddbert Result: Destroyed by 35-L30(g) with Beamcaster Performance ------------- Evolutions (0) 0 Regions Visited (3) 600 Robots Destroyed (7) 35 Value Destroyed (290) 290 Prototype IDs (14) 280 Alien Tech Used (0) 0 Bonus (800) 800 TOTAL SCORE: 2005 Bonus ------- Registered with UFD 300 Met Optimus in HQ 500 Cogmind --------- Core Integrity 0/250 Matter 300/300 Energy 100/100 System Corruption 0% Temperature Cool (9) Movement Core (1350) Ox26 Location -8/Scraptown Parts ------- > --- POWER (1) -------- (None) > --- PROPULSION (2) --- (None) > --- UTILITY (2) ------ Huge Storage Unit > --- WEAPON (2) ------- (None) > --- INVENTORY (25) --- Ion Engine Deuterium Engine Improved Deuterium Engine Overtuned Titanium Leg Overtuned Titanium Leg Wheel Medium Battery (150) Large Matter Pod (150) Small Laser Small Laser Beam Cannon Beam Cannon Grenade Launcher Peak State ------------ > --- POWER ------------ Ion Engine > --- PROPULSION ------- Overtuned Titanium Leg Overtuned Titanium Leg > --- UTILITY ---------- Huge Storage Unit Weapon Shielding > --- WEAPON ----------- Assault Rifle Battle Rifle > --- INVENTORY -------- Ion Engine Deuterium Engine Improved Deuterium Engine Fission Core Light Treads Light Treads Wheel Medium Battery Large Matter Pod Small Laser Small Laser Beam Cannon Beam Cannon Grenade Launcher [Rating: 14] Favorites ----------- Power Ion Engine Engine Ion Engine Power Core Fission Core Propulsion Light Treads Treads Light Treads Leg Overtuned Titanium Leg Wheel Wheel Utility Huge Storage Unit Storage Huge Storage Unit Protection Weapon Shielding Weapon Assault Rifle Energy Gun EM Pulse Gun Energy Cannon Beam Cannon Ballistic Gun Assault Rifle Build | -11 -10 -10 -8 ------- Run | Yrd Mat Sub Scr Slots Evolved . | . . . . Power . | . . . . Propulsion . | . . . . Utility . | . . . . Weapon . | . . . . Parts Attached 18 | 6 6 2 4 Power 2 | 1 . . 1 Engine 1 | 1 . . . Core 1 | . . . 1 Reactor . | . . . . Propulsion 6 | 2 . 2 2 Treads 2 | . . 2 . Leg 2 | . . . 2 Wheel 2 | 2 . . . Hover . | . . . . Flight . | . . . . Utility 5 | 1 4 . . Device . | . . . . Storage 3 | 1 2 . . Processor . | . . . . Hackware . | . . . . Protection 2 | . 2 . . Artifact . | . . . . Weapon 5 | 2 2 . 1 Energy Gun 2 | 2 . . . Energy Cannon 1 | . 1 . . Ballistic Gun 2 | . 1 . 1 Ballistic Cannon . | . . . . Launcher . | . . . . Special Weapon . | . . . . Impact Weapon . | . . . . Slashing Weapon . | . . . . Piercing Weapon . | . . . . Special Melee Weapon . | . . . . Unidentified Prototypes . | . . . . Parts Lost 9 | . 1 1 7 Power 2 | . . . 2 Propulsion 3 | . . 1 2 Utility 2 | . 1 . 1 Weapon 2 | . . . 2 Highest Loss Streak 6 | . 1 1 6 To Critical Strikes . | . . . . Average Backups 10 | 1 8 10 11 Power 2 | . 1 1 3 Propulsion 1 | . 1 1 1 Utility 1 | . 1 2 2 Weapon 4 | . 4 6 5 Tool/Special . | . . . . Unused Backups 11 | . 2 . 9 Power 3 | . . . 3 Propulsion . | . . . . Utility 3 | . 1 . 2 Weapon 5 | . 1 . 4 Tool/Special . | . . . . Average Slot Usage (%) 98 | . 97 90 99 Engine 13 | . 14 14 13 Treads 21 | . . 19 25 Leg 1 | . . . 2 Wheel 4 | . 28 7 . Storage 14 | . 14 14 14 Protection 13 | . 11 14 13 Energy Gun 1 | . 10 . . Energy Cannon 2 | . 12 5 . Ballistic Gun 23 | . 4 14 27 Peak Build Rating 14 | 6 8 8 14 Average Rating 9 | 4 7 7 9 On Entrance 5 | . 6 8 7 Avg Prop Armor Cover (%) 10 | . . . 10 Naked Turns . | . . . . Heaviest Build 94 | 13 93 91 94 Greatest Support 40 | 20 20 40 40 Greatest Overweight (x) 29 | 3 4 9 29 Average Overweight (x) 2 | . 3 2 2 Largest Inventory Capacity 25 | 8 25 25 25 Average Capacity 24 | 7 22 25 25 Most Carried 16 | 4 11 11 16 Average Carried 10 | 2 8 10 11 Final Capacity 25 | 8 25 25 25 Final Carried 13 | 4 10 11 13 Class Distribution -------------------- 100% | Mutant Dominant Class ---------------- Mutant | -10/Materials Mutant | -10/Subcaves Mutant | -8/Scraptown Resources | -11 -10 -10 -8 ----------- Run | Yrd Mat Sub Scr Matter Collected 548 | 229 76 95 148 Remotely . | . . . . Salvage Created 295 | . 235 60 . Parts 10 | . 9 1 . Haulers Intercepted . | . . . . Recyclers Shooed . | . . . . Parts Field Recycled . | . . . . Retrieved Matter . | . . . . Parts Self-Destructed 7 | . . 7 . Prevented . | . . . . Parts Restored . | . . . . Kills | -11 -10 -10 -8 ------- Run | Yrd Mat Sub Scr Combat Hostiles Destroyed 7 | . 6 1 . Guns 3 | . 2 1 . Cannons 4 | . 4 . . Classes Destroyed 2 | . 1 1 . Grunt 6 | . 6 . . Subdweller 1 | . . 1 . Best Kill Streak 4 | . 4 1 . Combat Bots Only 4 | . 4 1 . Max Kills in Single Turn 1 | . 1 1 . Gunslinging . | . . . . Exploded . | . . . . Melee . | . . . . Uniques/NPCs Destroyed . | . . . . Combat | -11 -10 -10 -8 -------- Run | Yrd Mat Sub Scr Hostile Shots Fired 116 | . 30 9 77 Missed 36 | . 10 4 22 Hits 80 | . 20 5 55 Projectile 80 | . 20 5 55 Critical Strikes 2 | . . . 2 Damage Taken 1383 | . 332 97 954 Core 252 | . 12 . 240 Absorbed by Shields . | . . . . Redirected to Shielding 53 | . 6 19 28 Core Remaining (%) 100 | 100 . . . Volleys Fired 22 | . 16 6 . Largest 2 | . 2 2 . Hottest 100 | . 100 80 . Shots Fired 40 | . 28 12 . Gun 22 | . 16 6 . Cannon 18 | . 12 6 . Launcher . | . . . . Special . | . . . . Kinetic 6 | . . 6 . Thermal 18 | . 12 6 . Explosive . | . . . . Electromagnetic 16 | . 16 . . Robot Hit Streak 5 | . 4 5 . Robot Miss Streak 2 | . 2 2 . Penetration Max . | . . . . Secondary Targets . | . . . . Shots Hit Robots 26 | . 18 8 . Core Hits 11 | . 9 2 . Critical Kills . | . . . . Critical Parts Destroyed . | . . . . Critical Strikes 1 | . . 1 . Destroy 1 | . . 1 . Melee Attacks . | . . . . Impact . | . . . . Slashing . | . . . . Piercing . | . . . . Sneak Attacks . | . . . . Combat Hostiles . | . . . . Follow-up Attacks . | . . . . Damage Inflicted 502 | . 426 76 . Guns 171 | . 130 41 . Cannons 212 | . 177 35 . Explosions 119 | . 119 . . Melee . | . . . . Ramming . | . . . . Kinetic 41 | . . 41 . Thermal 331 | . 296 35 . Explosive . | . . . . Electromagnetic 130 | . 130 . . Impact . | . . . . Slashing . | . . . . Piercing . | . . . . Highest Corruption . | . . . . Average Corruption . | . . . . Corruption Purged . | . . . . Corruption Blocked . | . . . . Overload Shots . | . . . . Overflow Damage 1 | . 1 . . Projectiles . | . . . . Explosions 1 | . 1 . . Melee . | . . . . Knockbacks . | . . . . Impact . | . . . . Kinetic . | . . . . Secondary . | . . . . Self-Inflicted Damage 80 | . 80 . . Shots 1 | . 1 . . Rammed . | . . . . Targets Rammed . | . . . . Kicked . | . . . . Crushed . | . . . . Highest Temperature 405 | . 405 . 30 Average Temperature 172 | . 181 . 20 Received Heat Transfer 724 | . 141 . 583 Effects 2 | . 2 . . Shutdowns 1 | . 1 . . Interference 1 | . 1 . . Siege Activations . | . . . . Martial Activations . | . . . . Shielding Activations . | . . . . Robots Disrupted . | . . . . Combat Hostiles . | . . . . Robots Corrupted . | . . . . Combat Hostiles . | . . . . Parts Fried . | . . . . Impact Corruptions . | . . . . Robots Melted . | . . . . Combat Hostiles . | . . . . Parts Melted . | . . . . Heat Transferred 544 | . 470 74 . Parts Sabotaged . | . . . . Parts Stolen . | . . . . Parts Stripped . | . . . . Power Chain Reactions 1 | . 1 . . Alert | -11 -10 -10 -8 ------- Run | Yrd Mat Sub Scr Maximum Alert Level . | . . . . Low Security (%) 100 | 100 100 . . Level 1 . | . . . . Level 2 . | . . . . Level 3 . | . . . . Level 4 . | . . . . Level 5 . | . . . . High Security . | . . . . Max Security . | . . . . Peak Influence 131 | . 131 . . Initial . | . . . . Average 45 | . 51 . . Influence Increases 215 | . 215 . . Destroy 0b10 Robot/C 120 | . 120 . . Destroy Leader 30 | . 30 . . Successful Hack 14 | . 14 . . Disable Machine 30 | . 30 . . Destroy Structure 21 | . 21 . . Influence Decreases 215 | . 180 35 . Entered New Map 18 | . . 18 . Time Decay 187 | . 170 17 . Lost Part 10 | . 10 . . Squads Dispatched 1 | . 1 . . Investigation 1 | . 1 . . Extermination . | . . . . Reinforcement . | . . . . Assault . | . . . . Garrison . | . . . . Intercept . | . . . . Searches Triggered . | . . . . Construction Impeded . | . . . . Haulers Reinforced . | . . . . Active Scanning Responses . | . . . . Cargo Convoy Interrupts . | . . . . Stealth | -11 -10 -10 -8 --------- Run | Yrd Mat Sub Scr Distress Signals . | . . . . Communications Jammed . | . . . . Distress Signals . | . . . . Times Spotted 24 | . 13 1 10 Peak Tracking Total 5 | . 5 1 4 Tactical Retreats 1 | . . . 1 Traps | -11 -10 -10 -8 ------- Run | Yrd Mat Sub Scr Traps Triggered 1 | . 1 . . Indirectly . | . . . . Trap Hack Attempts . | . . . . Triggered . | . . . . Disarmed . | . . . . Reprogrammed . | . . . . Reused . | . . . . Traps Extracted . | . . . . Installed . | . . . . Triggered . | . . . . Machines | -11 -10 -10 -8 ---------- Run | Yrd Mat Sub Scr Machines Disabled 2 | . 2 . . Max in Single Turn 2 | . 2 . . Machines Repaired . | . . . . Machines Dismantled . | . . . . Machines Sabotaged . | . . . . Overloaded Fab Kills . | . . . . Hacking | -11 -10 -10 -8 --------- Run | Yrd Mat Sub Scr Machines Accessed 12 | . 5 . 7 Terminals 5 | . 5 . . Fabricators . | . . . . Repair Stations . | . . . . Recycling Units . | . . . . Scanalyzers . | . . . . Garrison Access . | . . . . Total Hacks 36 | . 12 . 24 Successful 32 | . 8 . 24 Failed 4 | . 4 . . Catastrophic . | . . . . Database Lockouts . | . . . . Manual . | . . . . Terminals 12 | . 12 . . Fabricators . | . . . . Repair Stations . | . . . . Recycling Units . | . . . . Scanalyzers . | . . . . Garrison Access . | . . . . Terminal Hacks 32 | . 8 . 24 Record 24 | . 2 . 22 Prototype ID Bank 1 | . 1 . . Open Door 1 | . . . 1 Emergency Access Points 2 | . 2 . . Alert Level 1 | . 1 . . Investigation Status 1 | . 1 . . Zone Layout 1 | . 1 . . Proto ID Catalog 1 | . . . 1 Fabricator Hacks . | . . . . Repair Station Hacks . | . . . . Recycling Unit Hacks . | . . . . Scanalyzer . | . . . . Garrison Access Hacks . | . . . . Unauthorized Hacks . | . . . . Terminals . | . . . . Fabricators . | . . . . Repair Stations . | . . . . Recycling Units . | . . . . Scanalyzers . | . . . . Garrison Access . | . . . . Data Cores Recovered . | . . . . Used . | . . . . Hacking Detections 4 | . 4 . . Full Trace Events 1 | . 1 . . Feedback Events . | . . . . Feedback Blocked . | . . . . Robot Schematics Acquired . | . . . . Robots Built . | . . . . Authchips . | . . . . Time . | . . . . Total Robot Build Rating . | . . . . Part Schematics Acquired . | . . . . Parts Built . | . . . . Authchips . | . . . . Time . | . . . . Total Part Build Rating . | . . . . Part Studies Acquired . | . . . . Parts Repaired . | . . . . Time . | . . . . Parts Recycled . | . . . . Recycled Matter . | . . . . Retrieved Matter . | . . . . Retrieved Components . | . . . . Parts Scanalyzed . | . . . . Part Schematics Acquired . | . . . . Parts Damaged . | . . . . Bothacking | -11 -10 -10 -8 ------------ Run | Yrd Mat Sub Scr Used RIF Installer . | . . . . Robots Hacked . | . . . . Non-combat . | . . . . Combat . | . . . . Robot Hacks Applied . | . . . . Relay Couplers Released . | . . . . Fabnet Peak Effective % . | . . . . Robots Rewired . | . . . . Allies Hacked . | . . . . Hacks Repelled . | . . . . Allies | -11 -10 -10 -8 -------- Run | Yrd Mat Sub Scr Total Allies . | . . . . Largest Group . | . . . . Highest-Rated Group . | . . . . Highest-Rated Ally . | . . . . Total Orders . | . . . . Ally Attacks . | . . . . Total Damage . | . . . . Kills . | . . . . Allies Corrupted . | . . . . Allies Melted 13 | . . . 13 Intel | -11 -10 -10 -8 ------- Run | Yrd Mat Sub Scr Active Infowar (turns) . | . . . . Robot Analysis Total . | . . . . Derelict Logs Recovered . | . . . . Drone Launches . | . . . . Drone Recoveries . | . . . . Exploration | -11 -10 -10 -8 ------------- Run | Yrd Mat Sub Scr Turns Passed 5644 | 85 637 579 4343 Spaces Moved 2101 | 79 455 231 1336 Core 25 | 18 . . 7 Treads 1359 | . . 130 1229 Legs 100 | . . . 100 Wheels 617 | 61 455 101 . Hover . | . . . . Flight . | . . . . Fastest Speed 50 | 50 80 140 240 Average Speed 263 | 91 125 242 324 Slowest Speed 1500 | 200 140 320 1500 Overloaded Moves . | . . . . Propulsion Burnouts . | . . . . Robots Hopped . | . . . . Potential Cave-ins . | . . . . Cave-ins Triggered . | . . . . Exploration Rate (%) 39 | 3 51 22 81 Regions Visited 3 Branch Regions 2 Pre-discovered Areas 1 | . . 1 . Known Exits Taken . | . . . . Unknown Exits Taken 3 | 1 1 1 . Scrap Searched 1 | . . . 1 Spaces Dug . | . . . . Terrain Destroyed 20 | . 20 . . Melee . | . . . . Projectile . | . . . . AOE 20 | . 20 . . Terrain Rammed . | . . . . Walls Destroyed . | . . . . Machines Disabled . | . . . . Actions | -11 -10 -10 -8 --------- Run | Yrd Mat Sub Scr Total 2181 | 88 498 241 1354 Wait 2 | . 2 . . Move 2098 | 78 454 230 1336 Hop . | . . . . Pick Up 23 | 4 13 1 5 Fast Attach 10 | 6 2 . 2 Attach 10 | . 4 2 4 Detach 8 | . 2 2 4 Swap . | . . . . Drop 8 | . 5 . 3 Fire 22 | . 16 6 . Melee . | . . . . Ram . | . . . . Kick . | . . . . Crush . | . . . . Escape Stasis . | . . . . Rewire . | . . . . Trap . | . . . . Miscellaneous . | . . . . Route ------- -11/Scrapyard -10/Materials (discovered 2 exits: [*Mat] / [*Sub]) -10/Subcaves -8/Scraptown History --------- Turn | Location | Event 8 | -11/Scrapyard | Discovered new exit (range 16) 86 | -11/Scrapyard | Entered Materials 313 | -10/Materials | Build established: Mutant 484 | -10/Materials | Discovered new exit (range 5) 693 | -10/Materials | Discovered new exit (range 12) 723 | -10/Materials | Entered Subcaves 724 | -10/Subcaves | Approached by a straggling Scientist 1114 | -10/Subcaves | Learned location of Zion (-7) 1114 | -10/Subcaves | Met a Zionite searching for "candidates" 1269 | -10/Subcaves | Scientist uncovered a shortcut to Scraptown 1302 | -10/Subcaves | Entered Scraptown 1525 | -8/Scraptown | Visited Assassins FH 1682 | -8/Scraptown | Visited UFD Registry 1749 | -8/Scraptown | Visited Fellowship of the Rings 1838 | -8/Scraptown | Visited IN-MT5's Study 3089 | -8/Scraptown | Visited Cyclists 3256 | -8/Scraptown | Visited Red Mages 3454 | -8/Scraptown | Visited The Evicted 3701 | -8/Scraptown | Registered with UFD as "Spikegrid" 3813 | -8/Scraptown | Visited Science Guys 3960 | -8/Scraptown | Visited Infowarlord's Domain 4056 | -8/Scraptown | Visited Sword Containment 4600 | -8/Scraptown | Visited Derelict Rescue Squad 4843 | -8/Scraptown | Met Optimus 4843 | -8/Scraptown | Accepted into 0bPrime 5093 | -8/Scraptown | Visited Scrap Suit Storage 5158 | -8/Scraptown | Civil war broke out across Scraptown 5176 | -8/Scraptown | Visited Modified Component R&D 5260 | -8/Scraptown | Lost 9 allies 5326 | -8/Scraptown | Optimus destroyed in the chaos of civil war 5342 | -8/Scraptown | Lost 3 allies 5546 | -8/Scraptown | Lost 4 allies 5607 | -8/Scraptown | Core integrity fell below 50% 5644 | -8/Scraptown | Core integrity fell below 20% 5645 | -8/Scraptown | Destroyed by 35-L30(g) with Beamcaster Last Messages --------------- 05587_ Ovr. Titanium Leg recovered from malfunction. 05590_ W1-203(j) cannibalizes Ovr. Pulse Rifle to repair Ovr. Pulse Rifle. 05591_ 68-WN6(j) destroyed. 05593_ W1-203(j) destroyed. 05598_ Dropped Ovr. Titanium Leg. 05599_ Acquired 20 matter. 05605_ Acquired Ovr. Titanium Leg. 05618_ Lgt. Treads destroyed. 05619_ Q4-CBD(j) heat damages Lgt. Deuterium Engine. 05622_ Weapon Shielding destroyed. 05624_ Critical hit (Burn: +37). 05628_ Q4-CBD(j) cannibalizes Ovr. Titanium Leg to repair Ovr. Titanium Leg. 05630_ Fission Core destroyed. 05632_ Assault Rifle destroyed. 05632_ Battle Rifle destroyed. 05641_ Lgt. Treads destroyed. Map ----- +----------------------------------------------------+ | ?????????????????????????????????????????????????? | | ?????????????????????????????????????????????????? | | ?????????????????????????????????????????????????? | | ?????????????????????????????????????????????????? | | ?????????????????????????????????????????????????? | | ?????????????????????????????????????????????????? | | ?###################???####??????????????????????? | | ?"""##"""##""|##"""#####%!##????????#????????????? | | #"" ##""!##""=##!!!#!*===![######%%!##???????????? | | #"" =%/%!!=%!%=![[=*=%=%!=!%*=!#???????????? | | # !=%=%!!%[![*[%*!%!!!=%%[=%!#???????????? | | ########## ######=##%=[*[*!##########????????????? | | ?????????###????####[=#*=![#############?????????? | | ???????????????????#####[ #""""""""""""#?????????? | | ???????????????????????#=!#"""""""# "["#?????????? | | ???????????????????????#jg#" " ==# #?????????? | | ??????????????????????##g[#"= #+####?????????? | | ??????????????????????#; !#" """#?????????? | | ??????????????????????##!%;" "#?????????? | | ???????????????????????#*=#""""" ""#?????????? | | ???????????????????????# #####" "#?????????? | | ???????????????????????# #""""" X#?????????? | | ???????????????????????# # [ ##?????????? | | ???????????????????????# # "#?????????? | | ???????????????????????# # "#?????????? | | ?????? #???????#?# ????# @## ###########?????????? | | ?##### #???????# =#####%%## ##############??????? | | """""" """"??"" "" "" !!= "## #"""""#""#??????? | | !%= !%[ "## ! ! !#??????? | | !! ! [ "## #??????? | | "## #??????? | | "## X" #??????? | | !![ ##"#??????? | | """""""""""?""" """ " ""=[*=%!## !! !!#?????????? | | ?"""""""""????"""""""""!!*!=%"## #"""""#?????????? | | #### ######????######"%=!%!="##########?????????? | | ##????????#""*!*!["#??????????????????? | | X"#????????#""%[j%![#??????????????????? | | "" "" ##????????#""!=!!="#??? "#???????????? | | "" "" X"#??????###""=!!=%=#?? "#???????????? | | " " ######### #""=[[*%"## "#???????????? | | "" [= !"#???????????? | | "" = ## "#???????????? | | " " ######### #""%* *%"#?? "#???????????? | | "" "" ""#??????###"" "#???"" #???????????? | | "" "" ##????????#"" "#??????????????????? | | X"#????????#"" "##############?????? | | ##????????#"" "## """"""""#?????? | | #### ################"" "## " " " "#?????? | | """""""""""""""""""""""" "## "#?????? | +----------------------------------------------------+ Best States ------------- Heat Dissipation 25 Energy Generation 18 Energy Capacity 310 Matter Stores 300 Matter Capacity 300 Sight Range 16 Terrain Scan Density 10 Armor Coverage 150 Weapon Shielding 33 Evasion (%) 44 Recoil Reduction 2 Item Schematics ----------------- None Robot Schematics ------------------ None Fabricated ------------ Nothing Repaired ---------- Nothing Studied --------- None Alien Tech Used ----------------- None Achievements -------------- Link The Feds Nice Directions, Buddy Challenges ------------ None Game ------ Seed FocalLightningCleaver Manual? 0 Play Time 00:32:06 Cumulative 11.4 hours Start 2026.07.13 @ 07:44:05 End 2026.07.14 @ 18:16:32 Sessions 2 Manual Loads 0 Difficulty Rogue Special Mode None Game No. 32 Rogue 32 Adventurer 0 Explorer 0 Win Type - Total 0 Types 0/0/0/0/0/0/0/0/0/0 Lore% 14 Gallery% 9 Achievement% 11 Wizard Run 0 Options --------- Layout 1 ASCII 1 Keyboard 0 Movement Arrows Keybinds 0 Fullscreen 1 Font 24/Smallcaps Map View 50x40 Zoom Use 0% Tactical HUD 1 Map Filters NONE Filters NONE Steam 1 RUN: f5ffac01-3f64-492f-a616-87550ce106e5